[Event "*** Titled Tuesday Blitz"]
[Site "Chess.com"]
[Date "2020.10.20"]
[Round "3"]
[White "Legendinunknown"]
[Black "Morshynska"]
[Result "1-0"]
[WhiteElo "2597"]
[BlackElo "2249"]
[TimeControl "180+1"]
[EndTime "10:28:24 PDT"]
[Termination "Legendinunknown won on time"]

1. e4 {[%clk 0:03:00.9]} 1... e5 {[%clk 0:02:59]} 2. Nf3 {[%clk 0:03:00.5]} 2...
Nc6 {[%clk 0:02:59.3]} 3. Nc3 {[%clk 0:02:58.3]} 3... Nf6 {[%clk 0:02:56.5]} 4.
g3 {[%clk 0:02:56]} 4... d5 {[%clk 0:02:53.2]} 5. exd5 {[%clk 0:02:54.7]} 5...
Nxd5 {[%clk 0:02:54.1]} 6. Bg2 {[%clk 0:02:54.5]} 6... Nxc3 {[%clk 0:02:39.9]}
7. bxc3 {[%clk 0:02:55.4]} 7... Bd6 {[%clk 0:02:38]} 8. O-O {[%clk 0:02:54.7]}
8... O-O {[%clk 0:02:38.5]} 9. Rb1 {[%clk 0:02:54.9]} 9... Ne7 {[%clk
0:02:23.6]} 10. d3 {[%clk 0:02:43.9]} 10... c6 {[%clk 0:02:21]} 11. Nd2 {[%clk
0:02:39.7]} 11... Rb8 {[%clk 0:01:44.4]} 12. Nc4 {[%clk 0:02:36.7]} 12... Bc7
{[%clk 0:01:42.8]} 13. Ba3 {[%clk 0:02:32.9]} 13... Be6 {[%clk 0:01:41]} 14. Ne3
{[%clk 0:02:25.2]} 14... Re8 {[%clk 0:01:35.6]} 15. Qc1 {[%clk 0:02:23.5]} 15...
Bxa2 {[%clk 0:01:30.1]} 16. Ra1 {[%clk 0:02:22.8]} 16... Be6 {[%clk 0:01:27.9]}
17. Bxe7 {[%clk 0:02:17.6]} 17... Qxe7 {[%clk 0:01:27.9]} 18. Rxa7 {[%clk
0:02:18.1]} 18... Bb6 {[%clk 0:01:22.9]} 19. Ra1 {[%clk 0:02:17.8]} 19... Ra8
{[%clk 0:01:17.7]} 20. Qb2 {[%clk 0:02:12.9]} 20... Bc5 {[%clk 0:00:55.4]} 21.
d4 {[%clk 0:02:10.4]} 21... Bd6 {[%clk 0:00:46.1]} 22. Rfb1 {[%clk 0:02:05.4]}
22... Rxa1 {[%clk 0:00:40.1]} 23. Qxa1 {[%clk 0:02:06.3]} 23... Qc7 {[%clk
0:00:27.6]} 24. Qa7 {[%clk 0:01:58]} 24... Rb8 {[%clk 0:00:26.2]} 25. d5 {[%clk
0:01:39.2]} 25... cxd5 {[%clk 0:00:18.5]} 26. Bxd5 {[%clk 0:01:40.1]} 26... Qxc3
{[%clk 0:00:13.3]} 27. Bxe6 {[%clk 0:01:38.4]} 27... fxe6 {[%clk 0:00:14.2]} 28.
Rb6 {[%clk 0:01:36.9]} 28... Qc7 {[%clk 0:00:08.3]} 29. Nc4 {[%clk 0:01:26.3]}
29... Bc5 {[%clk 0:00:07.2]} 30. Rc6 {[%clk 0:01:13.2]} 30... Bxa7 {[%clk
0:00:02.6]} 31. Rxc7 {[%clk 0:01:13.2]} 31... Bd4 {[%clk 0:00:03.5]} 32. Na5
{[%clk 0:01:09.2]} 32... b5 {[%clk 0:00:03.4]} 33. Nc6 {[%clk 0:01:07.9]} 33...
Ra8 {[%clk 0:00:02.5]} 34. Rb7 {[%clk 0:01:03.1]} 34... Ra1+ {[%clk 0:00:02.2]}
35. Kg2 {[%clk 0:01:02.4]} 35... Rc1 {[%clk 0:00:02.7]} 36. Rc7 {[%clk 0:00:51]}
1-0

[Event "*** Titled Tuesday Blitz"]
[Site "Chess.com"]
[Date "2020.10.20"]
[Round "3"]
[White "Supernotar"]
[Black "fabianvivasz"]
[Result "0-1"]
[WhiteElo "2827"]
[BlackElo "2451"]
[TimeControl "180+1"]
[EndTime "10:28:25 PDT"]
[Termination "fabianvivasz won by checkmate"]

1. d3 {[%clk 0:02:58.2]} 1... Nf6 {[%clk 0:02:58.3]} 2. Nd2 {[%clk 0:02:52.3]}
2... e5 {[%clk 0:02:55.7]} 3. Ngf3 {[%clk 0:02:52.4]} 3... Nc6 {[%clk
0:02:54.9]} 4. g3 {[%clk 0:02:51.2]} 4... d5 {[%clk 0:02:53.1]} 5. Bg2 {[%clk
0:02:50.9]} 5... Be7 {[%clk 0:02:48.5]} 6. e4 {[%clk 0:02:49.6]} 6... O-O {[%clk
0:02:45.1]} 7. O-O {[%clk 0:02:48.7]} 7... h6 {[%clk 0:02:44.3]} 8. Re1 {[%clk
0:02:47.6]} 8... dxe4 {[%clk 0:02:38]} 9. dxe4 {[%clk 0:02:46.7]} 9... a5 {[%clk
0:02:33.8]} 10. c3 {[%clk 0:02:46.4]} 10... Be6 {[%clk 0:02:22.3]} 11. Qc2
{[%clk 0:02:45.6]} 11... Bc5 {[%clk 0:02:10.9]} 12. h3 {[%clk 0:02:45.1]} 12...
Qc8 {[%clk 0:01:56.8]} 13. g4 {[%clk 0:02:32.3]} 13... Nd7 {[%clk 0:01:33.3]}
14. Nf1 {[%clk 0:02:21.6]} 14... Ne7 {[%clk 0:01:30.1]} 15. Be3 {[%clk
0:02:16.1]} 15... Ng6 {[%clk 0:01:26]} 16. b3 {[%clk 0:02:12.6]} 16... b5 {[%clk
0:01:13.6]} 17. Rad1 {[%clk 0:02:11.8]} 17... a4 {[%clk 0:01:03.7]} 18. Ng3
{[%clk 0:02:10.3]} 18... axb3 {[%clk 0:01:00.2]} 19. axb3 {[%clk 0:02:08.9]}
19... Ra3 {[%clk 0:00:57.6]} 20. Nf5 {[%clk 0:02:04.3]} 20... Bxb3 {[%clk
0:00:53.5]} 21. Qb2 {[%clk 0:02:03.5]} 21... Bxd1 {[%clk 0:00:50.5]} 22. Bxc5
{[%clk 0:02:02.6]} 22... Bxf3 {[%clk 0:00:39.7]} 23. Bxf3 {[%clk 0:01:53.3]}
23... Nxc5 {[%clk 0:00:35]} 24. Qxa3 {[%clk 0:01:52.6]} 24... Ne6 {[%clk
0:00:34]} 25. h4 {[%clk 0:01:50.1]} 25... Qa8 {[%clk 0:00:28]} 26. Qb4 {[%clk
0:01:47.1]} 26... Qa6 {[%clk 0:00:23.4]} 27. h5 {[%clk 0:01:46.4]} 27... c5
{[%clk 0:00:22.3]} 28. Qb2 {[%clk 0:01:44.6]} 28... Ngf4 {[%clk 0:00:22.6]} 29.
Rd1 {[%clk 0:01:42.3]} 29... Ra8 {[%clk 0:00:18.6]} 30. Kh2 {[%clk 0:01:40.2]}
30... Qa4 {[%clk 0:00:12.7]} 31. Rd2 {[%clk 0:01:39.1]} 31... b4 {[%clk
0:00:11.1]} 32. cxb4 {[%clk 0:01:38.5]} 32... cxb4 {[%clk 0:00:12]} 33. Qxe5
{[%clk 0:01:38.2]} 33... Qa1 {[%clk 0:00:07.9]} 34. Qb5 {[%clk 0:01:33.8]} 34...
Qc3 {[%clk 0:00:06.7]} 35. Qb7 {[%clk 0:01:22.3]} 35... Qxf3 {[%clk 0:00:05.4]}
36. Qxa8+ {[%clk 0:01:22]} 36... Kh7 {[%clk 0:00:04.2]} 37. Ne3 {[%clk
0:01:21.9]} 37... Qh3+ {[%clk 0:00:03.4]} 38. Kg1 {[%clk 0:01:22]} 38... Ng5
{[%clk 0:00:03.8]} 39. f3 {[%clk 0:01:20.2]} 39... Nxf3+ {[%clk 0:00:03.4]} 40.
Kf2 {[%clk 0:01:20.6]} 40... Nxd2 {[%clk 0:00:03.7]} 41. Qa5 {[%clk 0:01:18.2]}
41... Qf3+ {[%clk 0:00:02.9]} 42. Ke1 {[%clk 0:01:18]} 42... Qe2# {[%clk
0:00:03]} 0-1

[Event "*** Titled Tuesday Blitz"]
[Site "Chess.com"]
[Date "2020.10.20"]
[Round "3"]
[White "pastouche06"]
[Black "PauloCesarCosta_sad"]
[Result "0-1"]
[WhiteElo "2471"]
[BlackElo "2279"]
[TimeControl "180+1"]
[EndTime "10:28:25 PDT"]
[Termination "PauloCesarCosta_sad won by resignation"]

1. d4 {[%clk 0:03:00.9]} 1... d5 {[%clk 0:02:59.2]} 2. c4 {[%clk 0:02:59.6]}
2... c5 {[%clk 0:02:59.2]} 3. cxd5 {[%clk 0:02:57]} 3... Qxd5 {[%clk 0:02:35.9]}
4. Nf3 {[%clk 0:02:56.2]} 4... cxd4 {[%clk 0:02:28.5]} 5. Nc3 {[%clk 0:02:55]}
5... Qa5 {[%clk 0:02:26.2]} 6. Nxd4 {[%clk 0:02:51.1]} 6... Nf6 {[%clk
0:02:26.2]} 7. g3 {[%clk 0:02:49.1]} 7... e5 {[%clk 0:02:18.6]} 8. Nb3 {[%clk
0:02:46.9]} 8... Qb4 {[%clk 0:02:18.6]} 9. Bg2 {[%clk 0:02:41.4]} 9... Be6
{[%clk 0:02:18.6]} 10. Bd2 {[%clk 0:02:27]} 10... Bxb3 {[%clk 0:02:11.8]} 11.
axb3 {[%clk 0:02:27.9]} 11... Nc6 {[%clk 0:02:07.2]} 12. Nd5 {[%clk 0:02:23.1]}
12... Qd6 {[%clk 0:01:57.5]} 13. Nxf6+ {[%clk 0:02:14.5]} 13... Qxf6 {[%clk
0:01:58.4]} 14. O-O {[%clk 0:02:13]} 14... Rd8 {[%clk 0:01:53.2]} 15. Qc2 {[%clk
0:02:06.3]} 15... Nd4 {[%clk 0:01:52]} 16. Qc4 {[%clk 0:01:51.6]} 16... b5
{[%clk 0:01:46.8]} 17. Qd3 {[%clk 0:01:45.8]} 17... Bc5 {[%clk 0:01:45.6]} 18.
Bc3 {[%clk 0:01:27.2]} 18... O-O {[%clk 0:01:40.9]} 19. Bxd4 {[%clk 0:01:26.5]}
19... Bxd4 {[%clk 0:01:36.2]} 20. Qxb5 {[%clk 0:01:26.6]} 20... Rb8 {[%clk
0:01:30]} 21. Qd3 {[%clk 0:01:25.1]} 21... Rfd8 {[%clk 0:01:24]} 22. Qe4 {[%clk
0:01:19]} 22... Qb6 {[%clk 0:01:17.3]} 23. e3 {[%clk 0:01:08.9]} 23... Bxb2
{[%clk 0:01:16.7]} 24. Rab1 {[%clk 0:01:09.2]} 24... Qxb3 {[%clk 0:01:08.6]} 25.
Qh4 {[%clk 0:01:04.7]} 25... a5 {[%clk 0:00:55]} 26. Be4 {[%clk 0:01:04.7]}
26... g6 {[%clk 0:00:49.3]} 27. Qe7 {[%clk 0:00:59.2]} 27... a4 {[%clk
0:00:44.1]} 28. Rxb2 {[%clk 0:00:52.3]} 28... Qxb2 {[%clk 0:00:41.9]} 29. Rb1
{[%clk 0:00:52.9]} 29... Qc3 {[%clk 0:00:32.1]} 30. Rxb8 {[%clk 0:00:53.4]}
30... Rxb8 {[%clk 0:00:30]} 31. Bd5 {[%clk 0:00:53.2]} 31... Rf8 {[%clk
0:00:21.9]} 32. e4 {[%clk 0:00:53.5]} 32... a3 {[%clk 0:00:19.4]} 33. h4 {[%clk
0:00:53.2]} 33... a2 {[%clk 0:00:16.6]} 0-1

[Event "*** Titled Tuesday Blitz"]
[Site "Chess.com"]
[Date "2020.10.20"]
[Round "3"]
[White "Barmen_EV"]
[Black "GM4life"]
[Result "1-0"]
[WhiteElo "2513"]
[BlackElo "2304"]
[TimeControl "180+1"]
[EndTime "10:28:26 PDT"]
[Termination "Barmen_EV won by resignation"]

1. d4 {[%clk 0:03:00.9]} 1... Nf6 {[%clk 0:02:59.5]} 2. c4 {[%clk 0:03:01.8]}
2... e6 {[%clk 0:02:59.1]} 3. Nc3 {[%clk 0:03:02.1]} 3... Bb4 {[%clk 0:02:58]}
4. e3 {[%clk 0:03:02.1]} 4... d5 {[%clk 0:02:55.1]} 5. a3 {[%clk 0:03:03]} 5...
Bxc3+ {[%clk 0:02:49.3]} 6. bxc3 {[%clk 0:03:03.9]} 6... O-O {[%clk 0:02:48.8]}
7. cxd5 {[%clk 0:03:04.2]} 7... exd5 {[%clk 0:02:47.3]} 8. Bd3 {[%clk
0:03:04.7]} 8... c5 {[%clk 0:02:47]} 9. Ne2 {[%clk 0:03:05.6]} 9... Nc6 {[%clk
0:02:40.1]} 10. O-O {[%clk 0:03:05.4]} 10... Be6 {[%clk 0:02:39.7]} 11. f3
{[%clk 0:03:04.9]} 11... Re8 {[%clk 0:02:39.6]} 12. Ng3 {[%clk 0:03:04.4]} 12...
Qd6 {[%clk 0:02:38.9]} 13. a4 {[%clk 0:03:02.8]} 13... b6 {[%clk 0:02:37.6]} 14.
Ba3 {[%clk 0:03:00.7]} 14... g6 {[%clk 0:02:36.8]} 15. Qd2 {[%clk 0:03:00.5]}
15... Rad8 {[%clk 0:02:36.1]} 16. e4 {[%clk 0:02:55.2]} 16... dxe4 {[%clk
0:02:32.1]} 17. fxe4 {[%clk 0:02:56.1]} 17... Nxd4 {[%clk 0:01:33]} 18. cxd4
{[%clk 0:02:55.2]} 18... Qxd4+ {[%clk 0:01:33.2]} 19. Qf2 {[%clk 0:02:18.5]}
19... Qxf2+ {[%clk 0:01:26]} 20. Rxf2 {[%clk 0:02:19.4]} 20... Ng4 {[%clk
0:01:26.3]} 21. Bb5 {[%clk 0:02:20.3]} 21... Re7 {[%clk 0:01:08.5]} 22. Re2
{[%clk 0:02:13.9]} 22... Ne5 {[%clk 0:00:59.7]} 23. Bb2 {[%clk 0:02:13.2]} 23...
f6 {[%clk 0:00:59.2]} 24. Bxe5 {[%clk 0:02:05.2]} 24... fxe5 {[%clk 0:00:56.7]}
25. Nf1 {[%clk 0:02:06.1]} 25... Rd4 {[%clk 0:00:53.6]} 26. Nd2 {[%clk
0:02:01.8]} 26... Bg4 {[%clk 0:00:49.6]} 27. Rf2 {[%clk 0:02:00.5]} 27... Kg7
{[%clk 0:00:46.5]} 28. h3 {[%clk 0:01:59.7]} 28... Bc8 {[%clk 0:00:46.4]} 29.
Re1 {[%clk 0:01:55.5]} 29... a6 {[%clk 0:00:46.6]} 30. Bc4 {[%clk 0:01:51.5]}
30... Red7 {[%clk 0:00:45.6]} 31. Bd5 {[%clk 0:01:50.3]} 31... Rxa4 {[%clk
0:00:42.3]} 32. Bc6 {[%clk 0:01:48.9]} 32... Rad4 {[%clk 0:00:37.5]} 33. Bxd7
{[%clk 0:01:48.6]} 33... Bxd7 {[%clk 0:00:37]} 34. Nf3 {[%clk 0:01:48.8]} 34...
Rd6 {[%clk 0:00:33.8]} 35. Nxe5 {[%clk 0:01:49]} 35... Be6 {[%clk 0:00:34.7]}
36. Rc1 {[%clk 0:01:39.6]} 36... Rd4 {[%clk 0:00:31.4]} 37. Nf3 {[%clk
0:01:32.3]} 37... Rxe4 {[%clk 0:00:29.8]} 38. Rb2 {[%clk 0:01:32.2]} 38... b5
{[%clk 0:00:26]} 39. Rxc5 {[%clk 0:01:31.6]} 39... Bc4 {[%clk 0:00:26.2]} 40.
Ne5 {[%clk 0:01:30.5]} 40... Be2 {[%clk 0:00:23.5]} 41. Rd2 {[%clk 0:01:25.2]}
41... a5 {[%clk 0:00:22.4]} 42. Rd7+ {[%clk 0:01:24.6]} 42... Kf6 {[%clk
0:00:22.2]} 43. Rd6+ {[%clk 0:01:20.8]} 43... Kf5 {[%clk 0:00:19.8]} 44. Nc6+
{[%clk 0:01:15.1]} 44... Kf4 {[%clk 0:00:19.8]} 45. Nxa5 {[%clk 0:01:15.6]}
45... Ke3 {[%clk 0:00:19.7]} 46. Nc6 {[%clk 0:01:11.9]} 46... Ra4 {[%clk
0:00:18.8]} 47. Re5+ {[%clk 0:01:09.9]} 47... Kf4 {[%clk 0:00:18.6]} 48. Rf6+
{[%clk 0:01:09.5]} 48... Kg3 {[%clk 0:00:15.7]} 49. Re3+ {[%clk 0:01:09.2]}
49... Kh4 {[%clk 0:00:15.7]} 50. Rxe2 {[%clk 0:01:09.2]} 1-0

[Event "*** Titled Tuesday Blitz"]
[Site "Chess.com"]
[Date "2020.10.20"]
[Round "3"]
[White "KatarinaOstojic"]
[Black "MikeSailer"]
[Result "0-1"]
[WhiteElo "2330"]
[BlackElo "2105"]
[TimeControl "180+1"]
[EndTime "10:28:26 PDT"]
[Termination "MikeSailer won by resignation"]

1. d4 {[%clk 0:03:00.9]} 1... d5 {[%clk 0:02:59.3]} 2. Nf3 {[%clk 0:03:00.9]}
2... Bf5 {[%clk 0:02:57.2]} 3. c4 {[%clk 0:02:59.3]} 3... e6 {[%clk 0:02:56.8]}
4. Nc3 {[%clk 0:02:58.6]} 4... Nc6 {[%clk 0:02:55.7]} 5. a3 {[%clk 0:02:58.3]}
5... Nf6 {[%clk 0:02:55]} 6. e3 {[%clk 0:02:53.9]} 6... Be7 {[%clk 0:02:48.9]}
7. Bd3 {[%clk 0:02:52.5]} 7... Bxd3 {[%clk 0:02:44.2]} 8. Qxd3 {[%clk
0:02:53.4]} 8... dxc4 {[%clk 0:02:44.3]} 9. Qxc4 {[%clk 0:02:54.3]} 9... Nd5
{[%clk 0:02:40.8]} 10. O-O {[%clk 0:02:52.6]} 10... O-O {[%clk 0:02:40.4]} 11.
e4 {[%clk 0:02:45.6]} 11... Nxc3 {[%clk 0:02:33.1]} 12. bxc3 {[%clk 0:02:46.1]}
12... Na5 {[%clk 0:02:21.8]} 13. Qe2 {[%clk 0:02:44.7]} 13... Nb3 {[%clk
0:02:07.7]} 14. Rb1 {[%clk 0:02:44.5]} 14... Nxc1 {[%clk 0:02:05.6]} 15. Rbxc1
{[%clk 0:02:41.1]} 15... Bxa3 {[%clk 0:02:03.7]} 16. Rb1 {[%clk 0:02:41.5]}
16... b6 {[%clk 0:01:57.9]} 17. Ne5 {[%clk 0:02:41.7]} 17... Bd6 {[%clk
0:01:52.8]} 18. Nc4 {[%clk 0:02:39.6]} 18... Qd7 {[%clk 0:01:40.4]} 19. e5
{[%clk 0:02:39.4]} 19... Be7 {[%clk 0:01:39.9]} 20. f4 {[%clk 0:02:32.2]} 20...
c5 {[%clk 0:01:32.2]} 21. Rfd1 {[%clk 0:02:30.2]} 21... cxd4 {[%clk 0:01:32.3]}
22. Rxd4 {[%clk 0:02:18.4]} 22... Bc5 {[%clk 0:01:31.4]} 23. Rd1 {[%clk
0:02:15.5]} 23... Rad8 {[%clk 0:01:20.1]} 24. Kh1 {[%clk 0:02:15.1]} 24... Bxd4
{[%clk 0:01:19.6]} 25. cxd4 {[%clk 0:02:16]} 25... Qd5 {[%clk 0:01:10.7]} 26.
Nd6 {[%clk 0:02:15.2]} 26... Rxd6 {[%clk 0:01:10.6]} 27. exd6 {[%clk 0:02:16.1]}
27... Qxd6 {[%clk 0:01:11.3]} 28. g3 {[%clk 0:02:15.6]} 28... Qd5+ {[%clk
0:01:09.8]} 29. Kg1 {[%clk 0:02:15.7]} 29... Rc8 {[%clk 0:01:08.6]} 30. Qd2
{[%clk 0:01:44.3]} 30... g6 {[%clk 0:01:04.7]} 31. Ra1 {[%clk 0:01:43]} 31... a5
{[%clk 0:01:01.1]} 32. Rb1 {[%clk 0:01:41.9]} 32... b5 {[%clk 0:00:53.7]} 33. h4
{[%clk 0:01:12.1]} 33... h5 {[%clk 0:00:50.6]} 34. Kh2 {[%clk 0:01:06.2]} 34...
b4 {[%clk 0:00:46.8]} 35. Ra1 {[%clk 0:01:00.6]} 35... Rc3 {[%clk 0:00:45.2]}
36. Qf2 {[%clk 0:00:57.3]} 36... b3 {[%clk 0:00:37.6]} 37. Kg1 {[%clk 0:00:54]}
37... Rc2 {[%clk 0:00:32.3]} 38. Qf1 {[%clk 0:00:54.4]} 38... Qxd4+ {[%clk
0:00:31.3]} 39. Kh1 {[%clk 0:00:54.9]} 39... Qxa1 {[%clk 0:00:13.9]} 40. Qxa1
{[%clk 0:00:54.1]} 40... b2 {[%clk 0:00:14.7]} 41. Qxa5 {[%clk 0:00:54.7]} 41...
b1=Q+ {[%clk 0:00:14.7]} 0-1

[Event "*** Titled Tuesday Blitz"]
[Site "Chess.com"]
[Date "2020.10.20"]
[Round "3"]
[White "frederiksvane"]
[Black "FMalexhdez"]
[Result "1-0"]
[WhiteElo "2658"]
[BlackElo "2263"]
[TimeControl "180+1"]
[EndTime "10:28:28 PDT"]
[Termination "frederiksvane won by resignation"]

1. e4 {[%clk 0:03:00.9]} 1... c5 {[%clk 0:02:59.9]} 2. Nf3 {[%clk 0:03:00.5]}
2... d6 {[%clk 0:03:00.7]} 3. Bb5+ {[%clk 0:02:57.7]} 3... Bd7 {[%clk
0:03:00.7]} 4. c4 {[%clk 0:02:57.2]} 4... Nc6 {[%clk 0:02:57.6]} 5. d4 {[%clk
0:02:47.5]} 5... cxd4 {[%clk 0:02:55.9]} 6. Nxd4 {[%clk 0:02:48.4]} 6... Nf6
{[%clk 0:02:52.9]} 7. Nc3 {[%clk 0:02:47.4]} 7... g6 {[%clk 0:02:52.9]} 8. O-O
{[%clk 0:02:46.8]} 8... Bg7 {[%clk 0:02:53.1]} 9. h3 {[%clk 0:02:39.2]} 9... O-O
{[%clk 0:02:52.1]} 10. Be3 {[%clk 0:02:39.3]} 10... Rc8 {[%clk 0:02:38.7]} 11.
Rc1 {[%clk 0:02:32.8]} 11... a6 {[%clk 0:02:28.2]} 12. Bxc6 {[%clk 0:02:30.3]}
12... bxc6 {[%clk 0:02:26.5]} 13. c5 {[%clk 0:02:23.9]} 13... dxc5 {[%clk
0:02:14.6]} 14. Nb3 {[%clk 0:02:23.8]} 14... Be6 {[%clk 0:02:13.4]} 15. Nxc5
{[%clk 0:02:20.3]} 15... Bc4 {[%clk 0:02:13]} 16. Re1 {[%clk 0:02:15.8]} 16...
Qa5 {[%clk 0:01:54.9]} 17. b3 {[%clk 0:02:04]} 17... Rfd8 {[%clk 0:01:54.8]} 18.
Qc2 {[%clk 0:01:43.1]} 18... Be6 {[%clk 0:01:45.2]} 19. Nb7 {[%clk 0:01:43.2]}
19... Qc7 {[%clk 0:01:35.1]} 20. Nxd8 {[%clk 0:01:42.8]} 20... Rxd8 {[%clk
0:01:35.2]} 21. Na4 {[%clk 0:01:42.9]} 21... Qe5 {[%clk 0:01:23.9]} 22. Nc5
{[%clk 0:01:25.8]} 22... Bc8 {[%clk 0:01:22.1]} 23. Red1 {[%clk 0:01:22]} 23...
Re8 {[%clk 0:01:17.9]} 24. Bd4 {[%clk 0:01:19.1]} 24... Qh5 {[%clk 0:01:17.7]}
25. Qc3 {[%clk 0:01:09.4]} 25... Bh6 {[%clk 0:01:09.5]} 26. Be3 {[%clk
0:01:01.9]} 26... Bg7 {[%clk 0:01:06.6]} 27. Qd3 {[%clk 0:00:56.8]} 27... e5
{[%clk 0:00:41.9]} 28. Rd2 {[%clk 0:00:32.9]} 28... Qh4 {[%clk 0:00:41.4]} 29.
Qe2 {[%clk 0:00:17.8]} 29... Nxe4 {[%clk 0:00:35.8]} 30. Rc4 {[%clk 0:00:18]}
30... f5 {[%clk 0:00:34.5]} 31. Nxe4 {[%clk 0:00:18.2]} 31... fxe4 {[%clk
0:00:34]} 32. Rxc6 {[%clk 0:00:18.6]} 32... Rf8 {[%clk 0:00:21.4]} 33. Qc4+
{[%clk 0:00:17.5]} 1-0

[Event "*** Titled Tuesday Blitz"]
[Site "Chess.com"]
[Date "2020.10.20"]
[Round "3"]
[White "AccioChess"]
[Black "Chamal_Gedgafov"]
[Result "0-1"]
[WhiteElo "2441"]
[BlackElo "2170"]
[TimeControl "180+1"]
[EndTime "10:28:32 PDT"]
[Termination "Chamal_Gedgafov won by resignation"]

1. e4 {[%clk 0:03:00.9]} 1... e6 {[%clk 0:02:55.9]} 2. d4 {[%clk 0:03:00.6]}
2... d5 {[%clk 0:02:55.9]} 3. Nd2 {[%clk 0:03:01]} 3... a6 {[%clk 0:02:55.1]} 4.
Ngf3 {[%clk 0:03:00.3]} 4... c5 {[%clk 0:02:55]} 5. exd5 {[%clk 0:02:52.1]} 5...
exd5 {[%clk 0:02:55.9]} 6. Be2 {[%clk 0:02:51.8]} 6... Nf6 {[%clk 0:02:53.2]} 7.
O-O {[%clk 0:02:51.9]} 7... c4 {[%clk 0:02:51.4]} 8. Ne5 {[%clk 0:02:49]} 8...
Be7 {[%clk 0:02:45.8]} 9. b3 {[%clk 0:02:48.6]} 9... cxb3 {[%clk 0:02:45.1]} 10.
axb3 {[%clk 0:02:48.5]} 10... O-O {[%clk 0:02:43.9]} 11. Bd3 {[%clk 0:02:46.6]}
11... Qc7 {[%clk 0:02:39.7]} 12. c4 {[%clk 0:02:34.2]} 12... Nc6 {[%clk
0:02:34.5]} 13. Ndf3 {[%clk 0:02:31.8]} 13... Bg4 {[%clk 0:02:28.1]} 14. Nxg4
{[%clk 0:01:57.7]} 14... Nxg4 {[%clk 0:02:26.6]} 15. cxd5 {[%clk 0:01:56.3]}
15... Nb4 {[%clk 0:02:20.4]} 16. Be4 {[%clk 0:01:44]} 16... Nf6 {[%clk
0:02:10.6]} 17. Qe2 {[%clk 0:01:33.3]} 17... Nxe4 {[%clk 0:02:00.2]} 18. Qxe4
{[%clk 0:01:34.2]} 18... Rfe8 {[%clk 0:01:48.7]} 19. Re1 {[%clk 0:01:12.9]}
19... h6 {[%clk 0:01:48.2]} 20. Bf4 {[%clk 0:01:11.4]} 20... Qd7 {[%clk
0:01:43.2]} 21. Rac1 {[%clk 0:00:44.5]} 21... Nxd5 {[%clk 0:01:29.9]} 22. Bg3
{[%clk 0:00:41.6]} 22... Bb4 {[%clk 0:01:22.5]} 23. Ne5 {[%clk 0:00:35.6]} 23...
Qe6 {[%clk 0:01:09.1]} 24. Red1 {[%clk 0:00:30.2]} 24... f6 {[%clk 0:01:04.3]}
25. f4 {[%clk 0:00:30.3]} 25... Nc3 {[%clk 0:00:57.1]} 26. Qxb7 {[%clk
0:00:27.6]} 26... Nxd1 {[%clk 0:00:53.6]} 27. Qxb4 {[%clk 0:00:26.5]} 27... Ne3
{[%clk 0:00:49.2]} 28. Nd3 {[%clk 0:00:21]} 28... Qe4 {[%clk 0:00:44.4]} 29. Qd2
{[%clk 0:00:20.6]} 29... Nf5 {[%clk 0:00:39.8]} 30. Bf2 {[%clk 0:00:19.5]} 30...
Nxd4 {[%clk 0:00:38.7]} 31. Re1 {[%clk 0:00:19.1]} 31... Qd5 {[%clk 0:00:31.3]}
32. Nb4 {[%clk 0:00:19.1]} 32... Nf3+ {[%clk 0:00:29]} 33. gxf3 {[%clk
0:00:18.7]} 33... Qxd2 {[%clk 0:00:29.9]} 0-1

[Event "*** Titled Tuesday Blitz"]
[Site "Chess.com"]
[Date "2020.10.20"]
[Round "3"]
[White "annamaja"]
[Black "dragos420"]
[Result "0-1"]
[WhiteElo "2281"]
[BlackElo "2502"]
[TimeControl "180+1"]
[EndTime "10:28:36 PDT"]
[Termination "dragos420 won on time"]

1. e4 {[%clk 0:03:00.9]} 1... e5 {[%clk 0:02:59.5]} 2. Nf3 {[%clk 0:03:00.3]}
2... Nc6 {[%clk 0:03:00.4]} 3. Bc4 {[%clk 0:03:00.4]} 3... Nf6 {[%clk
0:03:00.3]} 4. d3 {[%clk 0:03:01]} 4... h6 {[%clk 0:02:59.8]} 5. c3 {[%clk
0:03:01.5]} 5... d6 {[%clk 0:02:59.9]} 6. O-O {[%clk 0:03:01.9]} 6... g5 {[%clk
0:03:00.1]} 7. Nxg5 {[%clk 0:02:33.7]} 7... hxg5 {[%clk 0:02:56.6]} 8. Bxg5
{[%clk 0:02:34.6]} 8... Rg8 {[%clk 0:02:38.3]} 9. h4 {[%clk 0:02:29.3]} 9... Be7
{[%clk 0:02:35.7]} 10. Qf3 {[%clk 0:02:22.4]} 10... Bg4 {[%clk 0:02:21]} 11. Qg3
{[%clk 0:02:18.9]} 11... Bh5 {[%clk 0:02:20.2]} 12. f4 {[%clk 0:02:17.5]} 12...
Qd7 {[%clk 0:02:09.3]} 13. fxe5 {[%clk 0:02:07.6]} 13... Nxe5 {[%clk 0:02:08.4]}
14. Bb3 {[%clk 0:02:07.3]} 14... O-O-O {[%clk 0:02:02.1]} 15. Qe3 {[%clk
0:02:03.4]} 15... Kb8 {[%clk 0:01:32.1]} 16. Bxf6 {[%clk 0:01:37.1]} 16... Ng4
{[%clk 0:01:18.8]} 17. Qd4 {[%clk 0:01:12.7]} 17... c5 {[%clk 0:00:53.9]} 18.
Qa4 {[%clk 0:00:37.2]} 18... Qxa4 {[%clk 0:00:46.8]} 19. Bxa4 {[%clk 0:00:36.8]}
19... Bxf6 {[%clk 0:00:46.3]} 20. g3 {[%clk 0:00:24.4]} 20... Be5 {[%clk
0:00:44.9]} 21. Rf5 {[%clk 0:00:18.4]} 21... Bg6 {[%clk 0:00:38.3]} 22. Rf3
{[%clk 0:00:17.6]} 22... d5 {[%clk 0:00:27.4]} 23. Nd2 {[%clk 0:00:15.8]} 23...
dxe4 {[%clk 0:00:26.2]} 24. Nxe4 {[%clk 0:00:16.7]} 24... Bxe4 {[%clk
0:00:26.3]} 25. dxe4 {[%clk 0:00:17.6]} 25... Nf6 {[%clk 0:00:26.7]} 26. Bc2
{[%clk 0:00:03.9]} 26... Rxg3+ {[%clk 0:00:25.3]} 27. Rxg3 {[%clk 0:00:03.5]}
27... Bxg3 {[%clk 0:00:26.2]} 28. Rf1 {[%clk 0:00:03.6]} 28... Bxh4 {[%clk
0:00:25.8]} 29. e5 {[%clk 0:00:03.9]} 29... Ng4 {[%clk 0:00:24]} 30. Rf4 {[%clk
0:00:02.7]} 30... Rg8 {[%clk 0:00:22]} 0-1